Cogmind - Beta 13 @@@ ROGUE MODE // 2024.03.09 @ 16:23:08 Player: CatPlusPlus Result: Destroyed by PJ-4D0(R) with Subdweller Laser Performance ------------- Evolutions (0) 0 Regions Visited (2) 400 Robots Destroyed (27) 135 Value Destroyed (637) 637 Prototype IDs (10) 200 Alien Tech Used (0) 0 Bonus (0) 0 TOTAL SCORE: 1372 Bonus ------- None Cogmind --------- Core Integrity 0/250 Matter 240/300 Energy 250/250 System Corruption 0% Temperature Hot (225) Movement Treading (320) Ox2 Location -10/Subcaves Parts ------- > --- POWER (1) -------- Ion Engine > --- PROPULSION (2) --- Light Treads > --- UTILITY (2) ------ High-capacity Storage Unit Core Shielding > --- WEAPON (2) ------- Battle Cannon Makeshift Axe > --- INVENTORY (20) --- Ion Engine Light Ion Engine Aluminum Leg Aluminum Leg Aluminum Leg Aluminum Leg Compact Wheel Compact Wheel Medium Matter Pod (100) Structural Scanner Seismic Detector Core Shielding Light Armor Plating Power Bank Subdweller Beam Cannon Battle Rifle Battle Rifle Battle Cannon Mining Laser Multitool Peak State ------------ > --- POWER ------------ Ion Engine > --- PROPULSION ------- Light Treads Light Treads > --- UTILITY ---------- High-capacity Storage Unit Core Shielding > --- WEAPON ----------- Battle Cannon Makeshift Axe > --- INVENTORY -------- Ion Engine Light Ion Engine Aluminum Leg Aluminum Leg Aluminum Leg Aluminum Leg Compact Wheel Compact Wheel Medium Matter Pod Structural Scanner Seismic Detector Core Shielding Light Armor Plating Power Bank Subdweller Beam Cannon Battle Rifle Battle Rifle Battle Cannon Mining Laser Multitool [Rating: 14] Favorites ----------- Power Ion Engine Engine Ion Engine Power Core Light Nuclear Core Propulsion Light Treads Treads Light Treads Leg Aluminum Leg Utility High-capacity Storage Unit Device Seismic Detector Storage High-capacity Storage Unit Protection Core Shielding Weapon Small Laser Energy Gun Small Laser Energy Cannon Subdweller Beam Cannon Ballistic Gun Light Assault Rifle Ballistic Cannon Light Cannon Slashing Weapon Mining Claw Build | -11 -10 -10 ------- Run | Yrd Mat Sub Slots Evolved . | . . . Power . | . . . Propulsion . | . . . Utility . | . . . Weapon . | . . . Parts Attached 42 | . 19 23 Power 4 | . 3 1 Engine 3 | . 2 1 Core 1 | . 1 . Reactor . | . . . Propulsion 4 | . 3 1 Treads 3 | . 2 1 Leg 1 | . 1 . Wheel . | . . . Hover . | . . . Flight . | . . . Utility 15 | . 3 12 Device 7 | . . 7 Storage 2 | . 2 . Processor . | . . . Hackware . | . . . Protection 6 | . 1 5 Artifact . | . . . Weapon 19 | . 10 9 Energy Gun 4 | . 4 . Energy Cannon 1 | . . 1 Ballistic Gun 1 | . 1 . Ballistic Cannon 6 | . 2 4 Launcher . | . . . Special Weapon . | . . . Impact Weapon . | . . . Slashing Weapon 7 | . 3 4 Piercing Weapon . | . . . Special Melee Weapon . | . . . Unidentified Prototypes . | . . . Parts Lost 4 | . 2 2 Power 1 | . 1 . Propulsion 2 | . . 2 Utility . | . . . Weapon 1 | . 1 . Highest Loss Streak 1 | . 1 1 To Critical Strikes . | . . . Average Slot Usage (%) 99 | . 99 100 Engine 11 | . 9 14 Core 2 | . 4 . Treads 24 | . 21 28 Leg 3 | . 7 . Device 5 | . . 11 Storage 14 | . 14 14 Protection 7 | . 13 2 Energy Gun 8 | . 17 . Energy Cannon 1 | . . 2 Ballistic Gun 4 | . 9 . Ballistic Cannon 9 | . . 18 Slashing Weapon 3 | . . 6 Naked Turns . | . . . Heaviest Build 57 | 13 52 57 Greatest Support 40 | 20 40 40 Greatest Overweight (x) 1 | . 1 1 Average Overweight (x) . | . . 1 Largest Inventory Capacity 20 | . 20 20 Average Capacity 18 | . 17 20 Most Carried 20 | . 20 20 Average Carried 17 | . 15 19 Final Capacity 20 | 8 20 20 Final Carried 20 | 6 20 20 Class Distribution -------------------- 99% | Mutant Dominant Class ---------------- Mutant | -10/Materials Mutant | -10/Subcaves Resources | -11 -10 -10 ----------- Run | Yrd Mat Sub Matter Collected 977 | 178 432 367 Remotely . | . . . Salvage Created 948 | . 706 242 Parts 59 | . 47 12 Haulers Intercepted 2 | . 2 . Recyclers Shooed 1 | . 1 . Parts Field Recycled . | . . . Retrieved Matter . | . . . Parts Self-Destructed 9 | . . 9 Prevented . | . . . Kills | -11 -10 -10 ------- Run | Yrd Mat Sub Combat Hostiles Destroyed 17 | . 10 7 Guns 10 | . 10 . Cannons 7 | . . 7 Classes Destroyed 7 | . 6 1 Worker 2 | . 2 . Builder 4 | . 4 . Hauler 2 | . 2 . Recycler 2 | . 2 . Swarmer 2 | . 2 . Grunt 10 | . 8 2 Subdweller 5 | . . 5 Best Kill Streak 3 | . 3 2 Combat Bots Only 3 | . 3 2 Max Kills in Single Turn 2 | . 2 1 Gunslinging . | . . . Exploded . | . . . Melee . | . . . Uniques/NPCs Destroyed . | . . . Combat | -11 -10 -10 -------- Run | Yrd Mat Sub Hostile Shots Fired 112 | . 75 37 Missed 34 | . 24 10 Damage Taken 1342 | . 647 695 Core 253 | . 76 177 Absorbed by Shields . | . . . Redirected to Shielding 47 | . 17 30 Core Remaining (%) 100 | 100 . . Volleys Fired 115 | . 92 23 Largest 2 | . 2 2 Hottest 119 | . 80 119 Shots Fired 218 | . 172 46 Gun 172 | . 172 . Cannon 46 | . . 46 Launcher . | . . . Special . | . . . Kinetic 101 | . 60 41 Thermal 117 | . 112 5 Explosive . | . . . Electromagnetic . | . . . Robot Hit Streak 11 | . 8 11 Robot Miss Streak 4 | . 4 2 Penetration Max . | . . . Secondary Targets 1 | . 1 . Max Gunslinging Chain 1 | . 1 . Shots Hit Robots 131 | . 99 32 Core Hits 47 | . 35 12 Critical Kills . | . . . Critical Parts Destroyed 1 | . 1 . Critical Strikes 4 | . 4 . Burn 3 | . 3 . Destroy 1 | . 1 . Melee Attacks 20 | . 5 15 Impact . | . . . Slashing 20 | . 5 15 Piercing . | . . . Sneak Attacks 1 | . 1 . Combat Hostiles . | . . . Follow-up Attacks . | . . . Damage Inflicted 1767 | . 1129 638 Guns 1077 | . 1077 . Cannons 590 | . . 590 Explosions . | . . . Melee 98 | . 50 48 Ramming 2 | . 2 . Kinetic 763 | . 280 483 Thermal 904 | . 797 107 Explosive . | . . . Electromagnetic . | . . . Impact . | . . . Slashing 98 | . 50 48 Piercing . | . . . Highest Corruption . | . . . Average Corruption . | . . . Corruption Purged . | . . . Corruption Blocked . | . . . Overload Shots . | . . . Overflow Damage 35 | . 35 . Projectiles . | . . . Explosions . | . . . Melee 35 | . 35 . Knockbacks 4 | . . 4 Impact . | . . . Kinetic 4 | . . 4 Secondary . | . . . Self-Inflicted Damage . | . . . Shots . | . . . Rammed . | . . . Targets Rammed 1 | . 1 . Kicked 1 | . 1 . Crushed . | . . . Highest Temperature 220 | . 220 219 Average Temperature 64 | . 65 46 Received Heat Transfer 685 | . 291 394 Siege Activations . | . . . Robots Corrupted . | . . . Combat Hostiles . | . . . Parts Fried . | . . . Impact Corruptions . | . . . Robots Melted . | . . . Combat Hostiles . | . . . Parts Melted 5 | . 5 . Heat Transferred 2382 | . 2234 148 Parts Sabotaged . | . . . Parts Stolen . | . . . Parts Stripped . | . . . Power Chain Reactions . | . . . Alert | -11 -10 -10 ------- Run | Yrd Mat Sub Peak Influence 126 | . 126 . Initial . | . . . Average 54 | . 54 . Maximum Alert Level . | . . . Low Security (%) 100 | . 100 . Level 1 . | . . . Level 2 . | . . . Level 3 . | . . . Level 4 . | . . . Level 5 . | . . . High Security . | . . . Max Security . | . . . Squads Dispatched 2 | . 2 . Investigation 1 | . 1 . Extermination . | . . . Reinforcement 1 | . 1 . Assault . | . . . Garrison . | . . . Intercept . | . . . Searches Triggered . | . . . Construction Impeded . | . . . Haulers Reinforced . | . . . Active Scanning Responses . | . . . Cargo Convoy Interrupts . | . . . Stealth | -11 -10 -10 --------- Run | Yrd Mat Sub Distress Signals 3 | . 3 . Communications Jammed . | . . . Distress Signals . | . . . Times Spotted 32 | . 23 9 Peak Tracking Total 4 | . 4 2 Tactical Retreats 1 | . 1 . Traps | -11 -10 -10 ------- Run | Yrd Mat Sub Traps Triggered 1 | . 1 . Indirectly . | . . . Trap Hack Attempts . | . . . Triggered . | . . . Disarmed . | . . . Reprogrammed . | . . . Reused . | . . . Traps Extracted . | . . . Installed . | . . . Triggered . | . . . Machines | -11 -10 -10 ---------- Run | Yrd Mat Sub Machines Disabled 1 | . . 1 Max in Single Turn 1 | . . 1 Machines Repaired . | . . . Machines Dismantled . | . . . Machines Sabotaged . | . . . Overloaded Fab Kills . | . . . Hacking | -11 -10 -10 --------- Run | Yrd Mat Sub Machines Accessed 8 | . 7 1 Terminals 6 | . 6 . Fabricators . | . . . Repair Stations . | . . . Recycling Units 1 | . 1 . Scanalyzers . | . . . Garrison Access . | . . . Total Hacks 18 | . 17 1 Successful 6 | . 5 1 Failed 12 | . 12 . Catastrophic 2 | . 2 . Database Lockouts . | . . . Manual 3 | . 3 . Terminals 15 | . 15 . Fabricators . | . . . Repair Stations . | . . . Recycling Units 2 | . 2 . Scanalyzers . | . . . Garrison Access . | . . . Terminal Hacks 6 | . 5 1 Locate Traps 3 | . 3 . Hauler Manifests 1 | . 1 . Zone Layout 1 | . 1 . Derelict Proto ID Bank 1 | . . 1 Fabricator Hacks . | . . . Repair Station Hacks . | . . . Recycling Unit Hacks . | . . . Scanalyzer . | . . . Garrison Access Hacks . | . . . Unauthorized Hacks . | . . . Terminals . | . . . Fabricators . | . . . Repair Stations . | . . . Recycling Units . | . . . Scanalyzers . | . . . Garrison Access . | . . . Data Cores Recovered . | . . . Used . | . . . Hacking Detections 5 | . 5 . Full Trace Events . | . . . Feedback Events . | . . . Feedback Blocked . | . . . Robot Schematics Acquired . | . . . Robots Built . | . . . Authchips . | . . . Time . | . . . Total Robot Build Rating . | . . . Part Schematics Acquired . | . . . Parts Built . | . . . Authchips . | . . . Time . | . . . Total Part Build Rating . | . . . Parts Repaired . | . . . Time . | . . . Parts Recycled . | . . . Recycled Matter . | . . . Retrieved Matter . | . . . Retrieved Components . | . . . Parts Scanalyzed . | . . . Part Schematics Acquired . | . . . Parts Damaged . | . . . Bothacking | -11 -10 -10 ------------ Run | Yrd Mat Sub Used RIF Installer . | . . . Robots Hacked . | . . . Non-combat . | . . . Combat . | . . . Robot Hacks Applied . | . . . Relay Couplers Released . | . . . Fabnet Peak Effective % . | . . . Robots Rewired . | . . . Allies Hacked . | . . . Hacks Repelled . | . . . Allies | -11 -10 -10 -------- Run | Yrd Mat Sub Total Allies . | . . . Largest Group . | . . . Highest-Rated Group . | . . . Highest-Rated Ally . | . . . Total Orders . | . . . Ally Attacks . | . . . Total Damage . | . . . Kills . | . . . Allies Corrupted . | . . . Allies Melted . | . . . Intel | -11 -10 -10 ------- Run | Yrd Mat Sub Robot Analysis Total . | . . . Derelict Logs Recovered . | . . . Drone Launches . | . . . Drone Recoveries . | . . . Exploration | -11 -10 -10 ------------- Run | Yrd Mat Sub Turns Passed 4000 | . 1886 2114 Spaces Moved 1571 | 1 770 800 Core . | . . . Treads 1290 | . 490 800 Legs 281 | 1 280 . Wheels . | . . . Hover . | . . . Flight . | . . . Fastest Speed 120 | 120 120 240 Average Speed 218 | 120 196 240 Slowest Speed 240 | 120 240 240 Overloaded Moves . | . . . Propulsion Burnouts . | . . . Robots Hopped . | . . . Cave-ins Triggered . | . . . Exploration Rate (%) 46 | 2 96 40 Regions Visited 2 Branch Regions 1 Pre-discovered Areas 1 | . . 1 Known Exits Taken . | . . . Unknown Exits Taken 2 | 1 1 . Scrap Searched 4 | . . 4 Spaces Dug 2 | . 2 . Terrain Destroyed 2 | . 2 . Melee 2 | . 2 . Projectile . | . . . AOE . | . . . Terrain Rammed . | . . . Walls Destroyed . | . . . Machines Disabled . | . . . Actions | -11 -10 -10 --------- Run | Yrd Mat Sub Total 1891 | . 976 915 Wait 103 | . 63 40 Move 1569 | . 769 800 Hop . | . . . Pick Up 24 | . 18 6 Fast Attach 2 | . 1 1 Attach 3 | . 2 1 Detach 1 | . . 1 Swap 37 | . 16 21 Drop 16 | . 9 7 Fire 115 | . 92 23 Melee 20 | . 5 15 Ram . | . . . Kick 1 | . 1 . Crush . | . . . Escape Stasis . | . . . Rewire . | . . . Trap . | . . . Miscellaneous . | . . . Route ------- -11/Scrapyard -10/Materials (discovered 6 exits: [*Mat x3] / [*Min x2] / *Sub) -10/Subcaves History --------- Turn | Location | Event 1 | -11/Scrapyard | Discovered new exit (range 0) 1 | -11/Scrapyard | Entered Materials 54 | -10/Materials | Discovered new exit (range 15) 343 | -10/Materials | Build established: Mutant 399 | -10/Materials | Discovered new exit (range 15) 735 | -10/Materials | Discovered new exit (range 6) 1019 | -10/Materials | Discovered new exit (range 8) 1364 | -10/Materials | Discovered new exit (range 16) 1878 | -10/Materials | Discovered new exit (range 3) 1887 | -10/Materials | Entered Subcaves 2104 | -10/Subcaves | Learned location of Zion (-7) 2104 | -10/Subcaves | Met a Zionite searching for "candidates" 2293 | -10/Subcaves | Visited 4L-MR0's lab 2317 | -10/Subcaves | Found Power Bank 2610 | -10/Subcaves | Core integrity fell below 50% 3406 | -10/Subcaves | Core integrity fell below 20% 3507 | -10/Subcaves | Disturbed a concealed Subdweller 3970 | -10/Subcaves | A swath of the cavern ceiling suddenly collapsed 4001 | -10/Subcaves | Destroyed by PJ-4D0(R) with Subdweller Laser Last Messages --------------- 03606_ Found 28 Matter. 03607_ Acquired 13 matter. 03611_ Dropped Sml. Laser. 03611_ Acquired Battle Rifle. 03632_ Searching scrap... 03632_ Found Flamer. 03632_ Found 35 Matter. 03884_ G-34 Mercenary destroyed. 03888_ Critical hit (Burn: +37). 03893_ G-47 Trooper destroyed. 03898_ Heat Sink fries itself beyond repair. 03900_ Sml. Laser fries itself beyond repair. 03901_ Aluminum Leg fries itself beyond repair. 03909_ Particle Gun fries itself beyond repair. 03911_ Imp. Heat Sink fries itself beyond repair. A swath of the cavern ceiling suddenly collapses. 04000_ Lgt. Treads destroyed. 04000_ Critical hit (Meltdown: +250). Map ----- +----------------------------------------------------+ | ??????????????# #??????# ##?????????????? | | ??????????????# ##??????# ??????????????? | | ??????????????# ##???????# ##?????????????? | | ?????????????## #####????????# ??????????????? | | ?????????????# #??????##????# ??????????????? | | ?????????????# ##???## #????# ##?????????????? | | ?????????????# ##### ##???## ??????????????? | | ?????????????## #????? ??????????????? | | ??????????????# #?????" #??????????????? | | ?????????????## # #?????? ???????????????? | | ????????????## ## #??????????????????????? | | ????????????# ## #??????????????????????? | | ????????????# ### #??????????????????????? | | ????????????# ### ### ##??????????????????????? | | ????????????# #?###?# " #??????????????????????? | | ????????????####?????# "# #?###??????????????????? | | ?????????????????????# #####""???????????????????? | | ?????????????????????##"#"#"#????????????????????? | | ?????????????????????###""""#????????????????????? | | ?????????????????????####"##"#???????????????????? | | ??????????????????????####"#? ??????????????????? | | ????????????????????????##"#?? ?????????????????? | | ???????????????????????## ##??? ????????????????? | | ???????????????????????# ";##??? #??????????????? | | ?????????????????????#####;;#???? #??????????????? | | ?????????????????????# @###?????#??????????????? | | ????????????????????# ;##?????????????????????? | | ????????????????????## #??????????????????????? | | ?????????????????????## #??????????????????????? | | ??????????????????????##R #??????????????????????? | | ???????????????????????# #??????????????????????? | | ???????????????????????#R ??????????????????????? | | ??????????????????????? ??????????????????????? | | ??????????????????????? ??????????????????????? | | ??????????????????????? ??????????????????????? | | ??????????????????????? ??????????????????????? | | ?????????????????????? ??????????????????????? | | ?????????????????????? ??????????????????????? | | ?????????????????????? ??????????????????????? | | ?????????????????????? ###??????????????????????? | | ??????????????????????? ?????????????????????????? | | ?????????????????????????????????????????????????? | | ?????????????????????????????????????????????????? | | ?????????????????????????????????????????????????? | | ?????????????????????????????????????????????????? | | ?????????????????????????????????????????????????? | | ?????????????????????????????????????????????????? | | ?????????????????????????????????????????????????? | | ?????????????????????????????????????????????????? | | ?????????????????????????????????????????????????? | +----------------------------------------------------+ Best States ------------- Heat Dissipation 25 Energy Generation 14 Energy Capacity 250 Matter Stores 300 Matter Capacity 300 Sight Range 16 Terrain Scan Density 10 Core Shielding 20 Evasion (%) 55 Recoil Reduction 2 Item Schematics ----------------- None Robot Schematics ------------------ None Fabricated ------------ Nothing Alien Tech Used ----------------- None Achievements -------------- None Challenges ------------ None Game ------ Seed ThiefHellfireMaul Manual? 0 Play Time 00:20:18 Cumulative 87.0 hours Start 2024.03.09 @ 16:01:38 End 2024.03.09 @ 16:23:08 Sessions 1 Manual Loads 0 Difficulty Rogue Special Mode None Game No. 51 Rogue 51 Adventurer 0 Explorer 0 Win Type - Total 3 Types 2/0/0/1/0/0/0/0/0 Lore% 52 Gallery% 68 Achievement% 47 Wizard Run 0 Options --------- Layout 2 ASCII 0 Keyboard 1 Movement Numpad Keybinds 0 Fullscreen 2 Font 32/Tamsyn Map View 50x44 Zoom Use 0% Tactical HUD 1 Map Filters NONE Filters NONE Steam 1 RUN: b96421b7-7995-498c-9ade-d0a33f982061